[Event "*** Titled Tuesday Blitz"]
[Site "Chess.com"]
[Date "2018.12.04"]
[Round "7"]
[White "LyonBeast"]
[Black "Firouzja2003"]
[Result "1-0"]
[WhiteElo "2953"]
[BlackElo "3006"]
[TimeControl "180+2"]
[EndTime "14:37:19 PST"]
[Termination "LyonBeast won by resignation"]

1. e4 {[%clk 0:03:01.9]} 1... c5 {[%clk 0:02:57.3]} 2. Nf3 {[%clk 0:03:02.6]}
2... d6 {[%clk 0:02:58.7]} 3. d4 {[%clk 0:03:03.8]} 3... cxd4 {[%clk 0:02:59.7]}
4. Nxd4 {[%clk 0:03:05.7]} 4... Nf6 {[%clk 0:03:01.4]} 5. Nc3 {[%clk 0:03:07.4]}
5... Nc6 {[%clk 0:03:03.1]} 6. Be2 {[%clk 0:03:07.3]} 6... e5 {[%clk 0:03:03.5]}
7. Nf3 {[%clk 0:03:04.1]} 7... Be7 {[%clk 0:03:05]} 8. Bg5 {[%clk 0:03:04.3]}
8... O-O {[%clk 0:03:06.5]} 9. Bxf6 {[%clk 0:03:03.9]} 9... Bxf6 {[%clk
0:03:07.5]} 10. Nd5 {[%clk 0:03:05.1]} 10... Bg5 {[%clk 0:03:08.2]} 11. c3
{[%clk 0:03:04.8]} 11... Be6 {[%clk 0:03:08.3]} 12. O-O {[%clk 0:03:02.6]} 12...
Bh6 {[%clk 0:03:07.6]} 13. Bc4 {[%clk 0:03:03.4]} 13... Kh8 {[%clk 0:03:07.6]}
14. Bb3 {[%clk 0:03:03.2]} 14... Na5 {[%clk 0:03:07.2]} 15. Re1 {[%clk
0:03:03.2]} 15... Rc8 {[%clk 0:03:07.7]} 16. Qd3 {[%clk 0:03:02]} 16... f5
{[%clk 0:03:04.4]} 17. Rad1 {[%clk 0:02:57.9]} 17... fxe4 {[%clk 0:02:40.3]} 18.
Qxe4 {[%clk 0:02:56.4]} 18... Rc5 {[%clk 0:02:37.2]} 19. Bc2 {[%clk 0:02:47.4]}
19... Bf5 {[%clk 0:02:31.1]} 20. Qe2 {[%clk 0:02:43.2]} 20... Be6 {[%clk
0:02:15.3]} 21. Be4 {[%clk 0:02:41.5]} 21... Rc8 {[%clk 0:02:07]} 22. Rd3 {[%clk
0:02:25]} 22... Qe8 {[%clk 0:01:44.3]} 23. Red1 {[%clk 0:02:10.5]} 23... b5
{[%clk 0:01:40.3]} 24. b3 {[%clk 0:02:11.3]} 24... Nb7 {[%clk 0:01:36.5]} 25. b4
{[%clk 0:01:56.5]} 25... Nd8 {[%clk 0:01:36]} 26. Ne3 {[%clk 0:01:50.4]} 26...
Bxe3 {[%clk 0:01:08.1]} 27. Qxe3 {[%clk 0:01:51.3]} 27... Nf7 {[%clk 0:01:06]}
28. Qxa7 {[%clk 0:01:42.9]} 28... Rc4 {[%clk 0:01:06.6]} 29. Qe3 {[%clk
0:01:38.3]} 29... Qe7 {[%clk 0:01:07.2]} 30. h3 {[%clk 0:01:30.9]} 30... Qf6
{[%clk 0:00:56]} 31. a3 {[%clk 0:01:18.9]} 31... h6 {[%clk 0:00:53.5]} 32. Bd5
{[%clk 0:01:07.1]} 32... Bxd5 {[%clk 0:00:51.6]} 33. Rxd5 {[%clk 0:01:09]} 33...
e4 {[%clk 0:00:48.5]} 34. Nd4 {[%clk 0:01:01.2]} 34... Ne5 {[%clk 0:00:42.1]}
35. Nxb5 {[%clk 0:01:01.1]} 35... Nd3 {[%clk 0:00:42.7]} 36. Nxd6 {[%clk
0:01:00]} 36... Nf4 {[%clk 0:00:25.2]} 37. Nxc4 {[%clk 0:00:57.2]} 37... Qg6
{[%clk 0:00:26]} 38. g4 {[%clk 0:00:57.8]} 38... Nxd5 {[%clk 0:00:19.5]} 39.
Rxd5 {[%clk 0:00:57.5]} 39... Rf3 {[%clk 0:00:21.4]} 40. Ne5 {[%clk 0:00:58.7]}
1-0

[Event "*** Titled Tuesday Blitz"]
[Site "Chess.com"]
[Date "2018.12.04"]
[Round "7"]
[White "Jbd735"]
[Black "champ2005"]
[Result "0-1"]
[WhiteElo "2510"]
[BlackElo "2678"]
[TimeControl "180+2"]
[EndTime "14:37:28 PST"]
[Termination "champ2005 won on time"]

1. e4 {[%clk 0:03:01.9]} 1... c6 {[%clk 0:02:58.7]} 2. d4 {[%clk 0:03:02.1]}
2... d5 {[%clk 0:03:00.1]} 3. e5 {[%clk 0:03:03.3]} 3... Bf5 {[%clk 0:03:00.7]}
4. h4 {[%clk 0:03:04.5]} 4... h6 {[%clk 0:03:00.3]} 5. g4 {[%clk 0:03:05]} 5...
Be4 {[%clk 0:03:01.6]} 6. f3 {[%clk 0:03:02.8]} 6... Bh7 {[%clk 0:03:02.7]} 7.
e6 {[%clk 0:02:52.4]} 7... Qd6 {[%clk 0:03:03.7]} 8. exf7+ {[%clk 0:02:50.6]}
8... Kxf7 {[%clk 0:03:05.6]} 9. Ne2 {[%clk 0:02:41.6]} 9... e5 {[%clk
0:03:02.8]} 10. dxe5 {[%clk 0:02:39.5]} 10... Qxe5 {[%clk 0:03:04.7]} 11. Nc3
{[%clk 0:02:31.2]} 11... Bd6 {[%clk 0:02:21.3]} 12. Bf4 {[%clk 0:02:24.6]} 12...
Qe7 {[%clk 0:02:20.7]} 13. Qd2 {[%clk 0:02:21]} 13... Nd7 {[%clk 0:02:18]} 14.
O-O-O {[%clk 0:02:10.9]} 14... Ngf6 {[%clk 0:02:18.6]} 15. g5 {[%clk 0:01:55.2]}
15... Nh5 {[%clk 0:02:18.1]} 16. Bxd6 {[%clk 0:01:56]} 16... Qxd6 {[%clk
0:02:19.1]} 17. Bh3 {[%clk 0:01:55.6]} 17... Ne5 {[%clk 0:02:14]} 18. Rhg1
{[%clk 0:01:08]} 18... Rhe8 {[%clk 0:01:59.3]} 19. Nd4 {[%clk 0:00:47.6]} 19...
Nc4 {[%clk 0:01:55.8]} 20. Qf2 {[%clk 0:00:38.2]} 20... Nf4 {[%clk 0:01:55]} 21.
Bf5 {[%clk 0:00:32.6]} 21... g6 {[%clk 0:01:23.3]} 22. gxh6 {[%clk 0:00:32.5]}
22... Qf8 {[%clk 0:01:07.4]} 23. Qg3 {[%clk 0:00:26.4]} 23... Qxh6 {[%clk
0:01:04.9]} 24. Kb1 {[%clk 0:00:19.7]} 24... gxf5 {[%clk 0:01:03]} 25. Qh2
{[%clk 0:00:08.5]} 25... Rg8 {[%clk 0:00:53.9]} 26. Rge1 {[%clk 0:00:06.7]}
26... Rae8 {[%clk 0:00:52.9]} 27. Nde2 {[%clk 0:00:04.7]} 27... Nxe2 {[%clk
0:00:48.7]} 28. Nxe2 {[%clk 0:00:04.3]} 28... Qd6 {[%clk 0:00:49]} 29. Qh3
{[%clk 0:00:04.3]} 29... f4 {[%clk 0:00:48.1]} 30. Nd4 {[%clk 0:00:04]} 30...
Ne3 {[%clk 0:00:47.2]} 31. Rd2 {[%clk 0:00:03.3]} 31... c5 {[%clk 0:00:45.4]}
32. Nb5 {[%clk 0:00:02.5]} 32... Qe5 {[%clk 0:00:37.6]} 0-1

[Event "*** Titled Tuesday Blitz"]
[Site "Chess.com"]
[Date "2018.12.04"]
[Round "7"]
[White "nitpicker"]
[Black "colegiodemadrid"]
[Result "0-1"]
[WhiteElo "2178"]
[BlackElo "2293"]
[TimeControl "180+2"]
[EndTime "14:37:29 PST"]
[Termination "colegiodemadrid won on time"]

1. d4 {[%clk 0:03:01.9]} 1... d5 {[%clk 0:02:57]} 2. c4 {[%clk 0:03:01.9]} 2...
e6 {[%clk 0:02:57.2]} 3. Nf3 {[%clk 0:03:02]} 3... Nf6 {[%clk 0:02:58.3]} 4. g3
{[%clk 0:03:02.4]} 4... dxc4 {[%clk 0:02:58.5]} 5. Bg2 {[%clk 0:03:01.9]} 5...
Be7 {[%clk 0:02:57.2]} 6. O-O {[%clk 0:02:59.5]} 6... a6 {[%clk 0:02:58.3]} 7.
Ne5 {[%clk 0:02:55.5]} 7... O-O {[%clk 0:02:25.1]} 8. Nc3 {[%clk 0:02:47.2]}
8... Nd5 {[%clk 0:02:20.6]} 9. Nxc4 {[%clk 0:02:47.1]} 9... c5 {[%clk
0:02:12.6]} 10. Nxd5 {[%clk 0:02:42.2]} 10... exd5 {[%clk 0:02:13.1]} 11. Ne3
{[%clk 0:02:43.3]} 11... cxd4 {[%clk 0:02:11.9]} 12. Nxd5 {[%clk 0:02:40.5]}
12... Nc6 {[%clk 0:02:08.9]} 13. b3 {[%clk 0:02:23.9]} 13... Bc5 {[%clk
0:02:05.1]} 14. Bb2 {[%clk 0:02:13.7]} 14... Qd6 {[%clk 0:01:56.6]} 15. Rc1
{[%clk 0:01:56.6]} 15... Ba7 {[%clk 0:01:55.2]} 16. e3 {[%clk 0:01:44.2]} 16...
Rd8 {[%clk 0:01:37.1]} 17. exd4 {[%clk 0:01:16.9]} 17... Be6 {[%clk 0:01:37.7]}
18. Nf4 {[%clk 0:01:09]} 18... Bf5 {[%clk 0:01:15.9]} 19. Re1 {[%clk 0:00:48.2]}
19... g5 {[%clk 0:01:02.3]} 20. Nh5 {[%clk 0:00:38.2]} 20... Nb4 {[%clk
0:00:49.9]} 21. d5 {[%clk 0:00:19.3]} 21... Nd3 {[%clk 0:00:44.5]} 22. Bf6
{[%clk 0:00:18.1]} 22... Nxf2 {[%clk 0:00:37.7]} 23. Qe2 {[%clk 0:00:02.8]}
23... Bg4 {[%clk 0:00:23.5]} 24. Bf3 {[%clk 0:00:03.9]} 24... Bxh5 {[%clk
0:00:15.2]} 25. Bxd8 {[%clk 0:00:04.8]} 25... Nd3+ {[%clk 0:00:12.7]} 26. Kg2
{[%clk 0:00:05.2]} 26... Bxf3+ {[%clk 0:00:13.5]} 27. Qxf3 {[%clk 0:00:05.9]}
27... Nxe1+ {[%clk 0:00:15]} 28. Rxe1 {[%clk 0:00:05.8]} 28... Rxd8 {[%clk
0:00:16.6]} 29. Qf5 {[%clk 0:00:06.5]} 29... Qxd5+ {[%clk 0:00:17.8]} 0-1

[Event "*** Titled Tuesday Blitz"]
[Site "Chess.com"]
[Date "2018.12.04"]
[Round "7"]
[White "gmjlh"]
[Black "gkchesstiger"]
[Result "0-1"]
[WhiteElo "2697"]
[BlackElo "2806"]
[TimeControl "180+2"]
[EndTime "14:37:31 PST"]
[Termination "gkchesstiger won on time"]

1. Nf3 {[%clk 0:03:01.9]} 1... Nf6 {[%clk 0:02:59.7]} 2. g3 {[%clk 0:03:01.6]}
2... d5 {[%clk 0:03:00.8]} 3. Bg2 {[%clk 0:03:02.4]} 3... c6 {[%clk 0:02:59.2]}
4. O-O {[%clk 0:03:02.7]} 4... Bg4 {[%clk 0:02:56.9]} 5. h3 {[%clk 0:03:03.6]}
5... Bxf3 {[%clk 0:02:56.5]} 6. Bxf3 {[%clk 0:03:04.6]} 6... e5 {[%clk
0:02:56.6]} 7. Bg2 {[%clk 0:03:05.5]} 7... Nbd7 {[%clk 0:02:57.4]} 8. d3 {[%clk
0:03:05.4]} 8... Bc5 {[%clk 0:02:58.1]} 9. e3 {[%clk 0:03:03.7]} 9... O-O {[%clk
0:02:58.1]} 10. a3 {[%clk 0:03:04.3]} 10... a5 {[%clk 0:02:58.8]} 11. b3 {[%clk
0:03:04.6]} 11... Re8 {[%clk 0:02:59.1]} 12. Nd2 {[%clk 0:03:02.2]} 12... Qe7
{[%clk 0:02:58.6]} 13. Bb2 {[%clk 0:02:59.6]} 13... Rad8 {[%clk 0:02:45.4]} 14.
Qe2 {[%clk 0:02:59.5]} 14... Nf8 {[%clk 0:02:42.9]} 15. Kh1 {[%clk 0:02:56.4]}
15... Ng6 {[%clk 0:02:43.3]} 16. e4 {[%clk 0:02:46.9]} 16... h5 {[%clk
0:02:35.1]} 17. c3 {[%clk 0:02:18.2]} 17... Qd7 {[%clk 0:02:32.3]} 18. b4 {[%clk
0:02:16.7]} 18... Bb6 {[%clk 0:02:32.4]} 19. Rad1 {[%clk 0:02:11]} 19... axb4
{[%clk 0:02:27.6]} 20. axb4 {[%clk 0:02:11.6]} 20... Qe6 {[%clk 0:02:17.9]} 21.
exd5 {[%clk 0:01:24.2]} 21... cxd5 {[%clk 0:02:12.1]} 22. c4 {[%clk 0:01:09.9]}
22... dxc4 {[%clk 0:02:11.8]} 23. dxc4 {[%clk 0:01:06.3]} 23... Bd4 {[%clk
0:02:13]} 24. Bxd4 {[%clk 0:00:44.6]} 24... Rxd4 {[%clk 0:02:12.8]} 25. Nf3
{[%clk 0:00:46.2]} 25... Rxc4 {[%clk 0:01:59.4]} 26. Ng5 {[%clk 0:00:46.4]}
26... Qc8 {[%clk 0:01:59.9]} 27. b5 {[%clk 0:00:28.9]} 27... e4 {[%clk
0:01:58.5]} 28. Qd2 {[%clk 0:00:23.1]} 28... Qf5 {[%clk 0:01:51.9]} 29. h4
{[%clk 0:00:20]} 29... Ne5 {[%clk 0:01:44.5]} 30. Rfe1 {[%clk 0:00:10.1]} 30...
g6 {[%clk 0:01:30.3]} 31. Kg1 {[%clk 0:00:10.8]} 31... Neg4 {[%clk 0:01:12]} 32.
Re2 {[%clk 0:00:09.2]} 32... Qxb5 {[%clk 0:01:10.2]} 33. Rde1 {[%clk 0:00:06.5]}
33... e3 {[%clk 0:01:10.9]} 34. fxe3 {[%clk 0:00:06.8]} 34... Qe5 {[%clk
0:01:11.7]} 35. e4 {[%clk 0:00:02.8]} 35... Qxg3 {[%clk 0:01:10.9]} 36. Nf3
{[%clk 0:00:04]} 36... Rcxe4 {[%clk 0:01:10]} 37. Rxe4 {[%clk 0:00:04.6]} 37...
Nxe4 {[%clk 0:01:09.6]} 38. Qd4 {[%clk 0:00:04.9]} 38... Nh2 {[%clk 0:00:57.7]}
0-1

[Event "*** Titled Tuesday Blitz"]
[Site "Chess.com"]
[Date "2018.12.04"]
[Round "7"]
[White "FearNoEvil12"]
[Black "anesar92"]
[Result "1-0"]
[WhiteElo "1988"]
[BlackElo "2631"]
[TimeControl "180+2"]
[EndTime "14:37:34 PST"]
[Termination "FearNoEvil12 won by resignation"]

1. e4 {[%clk 0:03:01.9]} 1... e5 {[%clk 0:02:53.3]} 2. d4 {[%clk 0:03:02.1]}
2... exd4 {[%clk 0:02:52.4]} 3. Bc4 {[%clk 0:03:03.5]} 3... Nc6 {[%clk
0:02:48.5]} 4. Nf3 {[%clk 0:03:04.2]} 4... Nf6 {[%clk 0:02:44.9]} 5. e5 {[%clk
0:03:04.2]} 5... d5 {[%clk 0:02:44.8]} 6. Bb5 {[%clk 0:03:05.4]} 6... Ne4 {[%clk
0:02:45.2]} 7. Nxd4 {[%clk 0:03:04.8]} 7... Bc5 {[%clk 0:02:41.6]} 8. O-O {[%clk
0:03:02.2]} 8... Bd7 {[%clk 0:02:34.5]} 9. Bxc6 {[%clk 0:03:02]} 9... bxc6
{[%clk 0:02:36]} 10. f3 {[%clk 0:03:03.4]} 10... Ng5 {[%clk 0:02:35.7]} 11. f4
{[%clk 0:03:04.8]} 11... Ne4 {[%clk 0:02:36]} 12. Nc3 {[%clk 0:03:06.2]} 12...
Nxc3 {[%clk 0:02:30.9]} 13. bxc3 {[%clk 0:03:08.1]} 13... O-O {[%clk 0:02:28.8]}
14. Be3 {[%clk 0:03:07.9]} 14... Bb6 {[%clk 0:02:24.9]} 15. Qd2 {[%clk
0:03:05.3]} 15... Qe7 {[%clk 0:02:21.4]} 16. Rae1 {[%clk 0:03:04.2]} 16... Rae8
{[%clk 0:02:16.9]} 17. Kh1 {[%clk 0:02:22.5]} 17... a5 {[%clk 0:02:14.6]} 18. h3
{[%clk 0:02:06.8]} 18... c5 {[%clk 0:02:15.3]} 19. Nf3 {[%clk 0:02:06]} 19...
Bc6 {[%clk 0:02:15.7]} 20. Qf2 {[%clk 0:01:58.4]} 20... Rd8 {[%clk 0:02:10.6]}
21. f5 {[%clk 0:01:57.5]} 21... d4 {[%clk 0:02:11.6]} 22. Bg5 {[%clk 0:01:53.7]}
22... Qd7 {[%clk 0:02:02]} 23. f6 {[%clk 0:01:52]} 23... g6 {[%clk 0:01:58.2]}
24. Qh4 {[%clk 0:01:50.9]} 24... h5 {[%clk 0:01:57.8]} 25. Bh6 {[%clk
0:01:29.3]} 25... Kh7 {[%clk 0:01:22.6]} 26. Bg7 {[%clk 0:01:27.2]} 26... Rh8
{[%clk 0:00:56]} 27. Ng5+ {[%clk 0:01:23]} 27... Kg8 {[%clk 0:00:56.7]} 28. e6
{[%clk 0:01:23.9]} 28... fxe6 {[%clk 0:00:55.2]} 29. Bxh8 {[%clk 0:01:12.1]}
29... Qd5 {[%clk 0:00:49.8]} 30. Re2 {[%clk 0:00:51.5]} 30... Kxh8 {[%clk
0:00:49.2]} 31. Nf7+ {[%clk 0:00:49]} 31... Kh7 {[%clk 0:00:47.5]} 32. Qf4
{[%clk 0:00:36.8]} 32... g5 {[%clk 0:00:43.1]} 33. Nxg5+ {[%clk 0:00:34]} 33...
Kg6 {[%clk 0:00:43.2]} 34. Nxe6 {[%clk 0:00:24]} 34... Rg8 {[%clk 0:00:44.2]}
35. f7 {[%clk 0:00:21.9]} 1-0

[Event "*** Titled Tuesday Blitz"]
[Site "Chess.com"]
[Date "2018.12.04"]
[Round "7"]
[White "jmduque"]
[Black "pedroholly22"]
[Result "1-0"]
[WhiteElo "2406"]
[BlackElo "2206"]
[TimeControl "180+2"]
[EndTime "14:37:36 PST"]
[Termination "jmduque won by checkmate"]

1. e4 {[%clk 0:03:01.9]} 1... c5 {[%clk 0:02:58.9]} 2. Nf3 {[%clk 0:02:59.5]}
2... d6 {[%clk 0:02:59]} 3. d4 {[%clk 0:02:58.4]} 3... cxd4 {[%clk 0:03:00.9]}
4. Nxd4 {[%clk 0:03:00]} 4... Nf6 {[%clk 0:03:01.3]} 5. Nc3 {[%clk 0:03:00.2]}
5... g6 {[%clk 0:03:01.9]} 6. Be3 {[%clk 0:03:00.6]} 6... Bg7 {[%clk 0:03:03.2]}
7. f3 {[%clk 0:03:02]} 7... Nc6 {[%clk 0:03:03.8]} 8. Qd2 {[%clk 0:03:03.4]}
8... O-O {[%clk 0:03:04]} 9. O-O-O {[%clk 0:03:04.5]} 9... d5 {[%clk 0:03:05.3]}
10. Kb1 {[%clk 0:03:04.9]} 10... Rb8 {[%clk 0:02:59.3]} 11. Ndb5 {[%clk
0:02:55.2]} 11... a6 {[%clk 0:02:43]} 12. Na7 {[%clk 0:02:56]} 12... Bd7 {[%clk
0:02:31.8]} 13. exd5 {[%clk 0:02:54.6]} 13... Nxa7 {[%clk 0:02:26.8]} 14. Bxa7
{[%clk 0:02:55.1]} 14... Rc8 {[%clk 0:02:28.3]} 15. Bd4 {[%clk 0:02:38]} 15...
b5 {[%clk 0:02:24.2]} 16. a3 {[%clk 0:02:30.9]} 16... Qc7 {[%clk 0:02:02.6]} 17.
g4 {[%clk 0:02:28.4]} 17... a5 {[%clk 0:01:58.4]} 18. g5 {[%clk 0:02:27.2]}
18... Nh5 {[%clk 0:01:57]} 19. Bxg7 {[%clk 0:02:23.4]} 19... Nxg7 {[%clk
0:01:58.9]} 20. Bxb5 {[%clk 0:02:21.5]} 20... Bxb5 {[%clk 0:01:54.5]} 21. Nxb5
{[%clk 0:02:21.8]} 21... Qb7 {[%clk 0:01:55.6]} 22. a4 {[%clk 0:02:05.1]} 22...
Rc4 {[%clk 0:01:54.4]} 23. b3 {[%clk 0:02:02.3]} 23... Rb4 {[%clk 0:01:55.5]}
24. h4 {[%clk 0:02:01.1]} 24... Nh5 {[%clk 0:01:48.9]} 25. Ka2 {[%clk 0:01:58]}
25... Ra8 {[%clk 0:01:39.2]} 26. Rde1 {[%clk 0:01:42.1]} 26... Rxb5 {[%clk
0:01:31.5]} 27. axb5 {[%clk 0:01:42.4]} 27... a4 {[%clk 0:01:32.8]} 28. b4
{[%clk 0:01:40.6]} 28... Ng3 {[%clk 0:01:23.3]} 29. Rhg1 {[%clk 0:01:39.1]}
29... Nf5 {[%clk 0:01:23.8]} 30. Rg4 {[%clk 0:01:36.5]} 30... Qxb5 {[%clk
0:01:23.5]} 31. c4 {[%clk 0:01:34.2]} 31... Qd7 {[%clk 0:01:19.8]} 32. Rge4
{[%clk 0:01:25.8]} 32... Rc8 {[%clk 0:01:13.6]} 33. h5 {[%clk 0:01:26.1]} 33...
e6 {[%clk 0:01:11.4]} 34. hxg6 {[%clk 0:01:25.6]} 34... hxg6 {[%clk 0:01:11.7]}
35. Qe2 {[%clk 0:01:15.7]} 35... Ng3 {[%clk 0:01:07.7]} 36. dxe6 {[%clk
0:01:16.2]} 36... fxe6 {[%clk 0:01:05.5]} 37. Qd1 {[%clk 0:01:13.6]} 37... Qxd1
{[%clk 0:01:05.2]} 38. Rxd1 {[%clk 0:01:14.6]} 38... Nxe4 {[%clk 0:01:06.5]} 39.
fxe4 {[%clk 0:01:10.4]} 39... Rxc4 {[%clk 0:01:07.3]} 40. Ka3 {[%clk 0:01:11]}
40... Rxe4 {[%clk 0:01:07.1]} 41. b5 {[%clk 0:01:12]} 41... Re5 {[%clk 0:01:01]}
42. Kxa4 {[%clk 0:01:09.7]} 42... Rxg5 {[%clk 0:01:01]} 43. b6 {[%clk
0:01:11.1]} 43... Rg2 {[%clk 0:00:58.4]} 44. b7 {[%clk 0:01:11.1]} 44... Rb2
{[%clk 0:00:56.8]} 45. Rd8+ {[%clk 0:01:11.3]} 45... Kf7 {[%clk 0:00:57.3]} 46.
b8=Q {[%clk 0:01:12.1]} 46... Rxb8 {[%clk 0:00:57.5]} 47. Rxb8 {[%clk 0:01:14]}
47... Kf6 {[%clk 0:00:59.2]} 48. Kb3 {[%clk 0:01:15.1]} 48... Kf5 {[%clk
0:01:01.1]} 49. Kc2 {[%clk 0:01:16.1]} 49... g5 {[%clk 0:01:03]} 50. Kd2 {[%clk
0:01:17.3]} 50... Kf4 {[%clk 0:01:04.9]} 51. Ke2 {[%clk 0:01:18.8]} 51... g4
{[%clk 0:01:06.2]} 52. Kf2 {[%clk 0:01:20]} 52... e5 {[%clk 0:01:08.1]} 53. Rf8+
{[%clk 0:01:20.6]} 53... Ke4 {[%clk 0:01:09.6]} 54. Kg3 {[%clk 0:01:18.7]} 54...
Kd3 {[%clk 0:01:09.7]} 55. Kxg4 {[%clk 0:01:19.9]} 55... e4 {[%clk 0:01:11.6]}
56. Rd8+ {[%clk 0:01:19.1]} 56... Ke2 {[%clk 0:01:12.5]} 57. Kf4 {[%clk
0:01:19.7]} 57... e3 {[%clk 0:01:14.4]} 58. Re8 {[%clk 0:01:20.8]} 58... Kf2
{[%clk 0:01:16.3]} 59. Rxe3 {[%clk 0:01:21.8]} 59... Kg1 {[%clk 0:01:18.2]} 60.
Ra3 {[%clk 0:01:22.6]} 60... Kh2 {[%clk 0:01:20.1]} 61. Rg3 {[%clk 0:01:19.7]}
61... Kh1 {[%clk 0:01:20.7]} 62. Rg8 {[%clk 0:01:20.4]} 62... Kh2 {[%clk
0:01:22.6]} 63. Kf3 {[%clk 0:01:21.4]} 63... Kh3 {[%clk 0:01:24.1]} 64. Rh8#
{[%clk 0:01:22.5]} 1-0

[Event "*** Titled Tuesday Blitz"]
[Site "Chess.com"]
[Date "2018.12.04"]
[Round "7"]
[White "HanSchut"]
[Black "AsaHoffmann"]
[Result "0-1"]
[WhiteElo "2312"]
[BlackElo "2196"]
[TimeControl "180+2"]
[EndTime "14:37:42 PST"]
[Termination "AsaHoffmann won by resignation"]

1. e4 {[%clk 0:03:01.9]} 1... d6 {[%clk 0:02:59.9]} 2. d4 {[%clk 0:03:02.5]}
2... Nf6 {[%clk 0:03:00.3]} 3. Nc3 {[%clk 0:03:03]} 3... c6 {[%clk 0:03:01]} 4.
f4 {[%clk 0:03:01.9]} 4... Qa5 {[%clk 0:03:00.5]} 5. Bd3 {[%clk 0:03:01.5]} 5...
e5 {[%clk 0:03:00.6]} 6. Nf3 {[%clk 0:03:01.9]} 6... exd4 {[%clk 0:03:00.9]} 7.
Nxd4 {[%clk 0:03:02.3]} 7... Qb6 {[%clk 0:03:01.3]} 8. Nf3 {[%clk 0:02:55.5]}
8... Be7 {[%clk 0:03:00.7]} 9. Qe2 {[%clk 0:02:56.1]} 9... O-O {[%clk
0:02:58.1]} 10. Bd2 {[%clk 0:02:39.4]} 10... Na6 {[%clk 0:02:56]} 11. O-O-O
{[%clk 0:02:35.7]} 11... Nb4 {[%clk 0:02:56.1]} 12. Be3 {[%clk 0:02:33.8]} 12...
Nxd3+ {[%clk 0:02:53.9]} 13. Qxd3 {[%clk 0:02:30.6]} 13... Qa5 {[%clk
0:02:52.6]} 14. Bd2 {[%clk 0:02:25.5]} 14... Qc7 {[%clk 0:02:51.6]} 15. h3
{[%clk 0:02:07]} 15... b5 {[%clk 0:02:48.6]} 16. g4 {[%clk 0:02:00.2]} 16... b4
{[%clk 0:02:46.9]} 17. Ne2 {[%clk 0:01:59.5]} 17... a5 {[%clk 0:02:47.2]} 18.
Ned4 {[%clk 0:01:41.2]} 18... Ba6 {[%clk 0:02:44.7]} 19. Qe3 {[%clk 0:01:42]}
19... Rfe8 {[%clk 0:02:44]} 20. Nf5 {[%clk 0:01:36.1]} 20... Bf8 {[%clk
0:02:42.7]} 21. Ng5 {[%clk 0:01:32.8]} 21... h6 {[%clk 0:02:33.2]} 22. h4 {[%clk
0:01:33.9]} 22... Nxg4 {[%clk 0:02:14]} 23. Qg3 {[%clk 0:01:27.6]} 23... h5
{[%clk 0:02:07.7]} 24. Ne3 {[%clk 0:01:09.9]} 24... Qd7 {[%clk 0:01:54.7]} 25.
f5 {[%clk 0:01:01.1]} 25... Ne5 {[%clk 0:01:43.9]} 26. Rdg1 {[%clk 0:00:42.8]}
26... f6 {[%clk 0:01:41.2]} 27. Ne6 {[%clk 0:00:41.7]} 27... Rxe6 {[%clk
0:01:41.2]} 28. fxe6 {[%clk 0:00:43.6]} 28... Qxe6 {[%clk 0:01:42.1]} 29. b3
{[%clk 0:00:39.3]} 29... a4 {[%clk 0:01:37.7]} 30. Nf5 {[%clk 0:00:40.1]} 30...
Ra7 {[%clk 0:01:37]} 31. Bh6 {[%clk 0:00:30.4]} 31... Ng4 {[%clk 0:01:35.3]} 32.
Bf4 {[%clk 0:00:25.8]} 32... Qxe4 {[%clk 0:01:31.2]} 33. Nxd6 {[%clk 0:00:21.5]}
33... Bxd6 {[%clk 0:01:29]} 34. Bxd6 {[%clk 0:00:23.4]} 34... axb3 {[%clk
0:01:20.8]} 35. Qxb3+ {[%clk 0:00:24.5]} 35... Bc4 {[%clk 0:01:20.7]} 36. Qxb4
{[%clk 0:00:20.7]} 36... Rxa2 {[%clk 0:01:18]} 37. Qc3 {[%clk 0:00:11.9]} 37...
Qe3+ {[%clk 0:01:13.1]} 38. Qxe3 {[%clk 0:00:12.3]} 38... Nxe3 {[%clk
0:01:13.8]} 39. Rh2 {[%clk 0:00:13.3]} 39... Bd5 {[%clk 0:01:10.3]} 40. Bf4
{[%clk 0:00:11.4]} 40... Nf5 {[%clk 0:01:09.4]} 41. Kb1 {[%clk 0:00:10.5]} 41...
Ra4 {[%clk 0:01:08.7]} 42. Bd2 {[%clk 0:00:11]} 42... Kf7 {[%clk 0:01:08.6]} 43.
Kb2 {[%clk 0:00:10.3]} 43... Nxh4 {[%clk 0:01:09.2]} 44. Re2 {[%clk 0:00:08.5]}
44... Nf3 {[%clk 0:01:09]} 45. Rge1 {[%clk 0:00:09.4]} 45... Nxe1 {[%clk
0:01:09]} 46. Bxe1 {[%clk 0:00:09.8]} 46... Re4 {[%clk 0:01:09.4]} 47. Rxe4
{[%clk 0:00:06.3]} 47... Bxe4 {[%clk 0:01:09.8]} 0-1